fUST/lending_fUST_20250724
["ID","MTS","AMOUNT","RATE_DAILY","PERIOD"]
[374546429,1753348241159,-460.0,0.00019726,2]
[374546431,1753348241168,-460.0,0.00019726,2]
[374546432,1753348241177,-460.0,0.00019726,2]
[374546433,1753348241187,-460.0,0.00019726,2]
[374546434,1753348241197,-376.40490601,0.00019726,2]
[374546436,1753348241206,-2139.19,0.00019726,2]
[374546438,1753348241215,-460.0,0.00019726,2]
[374546440,1753348241225,-1121.94,0.00019726,2]
[374546442,1753348241234,-460.0,0.00019726,2]
[374546444,1753348241243,-460.0,0.00019726,2]
[374546446,1753348241253,-1053.76,0.00019726,2]
[374546448,1753348241263,-460.0,0.00019726,2]
[374546450,1753348241271,-460.0,0.00019726,2]
[374546452,1753348241281,-460.0,0.00019726,2]
[374546454,1753348241290,-460.0,0.00019726,2]
[374546456,1753348241299,-460.0,0.00019726,2]
[374546458,1753348241308,-1953.6,0.00019726,2]
[374546460,1753348241318,-1021.96,0.00019726,2]
[374546462,1753348241327,-460.0,0.00019726,2]
[374546464,1753348241336,-460.0,0.00019726,2]
[374546466,1753348241346,-460.0,0.00019726,2]
[374546468,1753348241355,-460.0,0.00019726,2]
[374546470,1753348241364,-460.0,0.00019726,2]
[374546472,1753348241374,-460.0,0.00019726,2]
[374546474,1753348241383,-460.0,0.00019726,2]
[374546476,1753348241392,-616.04,0.00019726,2]
[374546478,1753348241402,-460.0,0.00019726,2]
[374546480,1753348241411,-795.17,0.00019726,2]
[374546482,1753348241420,-634.04,0.00019726,2]
[374546484,1753348241430,-708.94,0.00019726,2]
[374546486,1753348241439,-763.57,0.00019726,2]
[374546488,1753348241448,-460.0,0.00019726,2]
[374546490,1753348241457,-537.84,0.00019726,2]
[374546492,1753348241467,-460.0,0.00019726,2]
[374546494,1753348241476,-460.0,0.00019726,2]
[374546496,1753348241486,-460.0,0.00019726,2]
[374546498,1753348241495,-460.0,0.00019726,2]
[374546500,1753348241505,-460.0,0.00019726,2]
[374546502,1753348241517,-678.96,0.00019726,2]
[374546504,1753348241526,-1501.98,0.00019726,2]
[374546506,1753348241536,-460.0,0.00019726,2]
[374546508,1753348241546,-899.64,0.00019726,2]
[374546510,1753348241555,-956.73,0.00019726,2]
[374546512,1753348241565,-460.0,0.00019726,2]
[374546514,1753348241574,-460.0,0.00019726,2]
[374546516,1753348241583,-460.0,0.00019726,2]
[374546518,1753348241593,-460.0,0.00019726,2]
[374546520,1753348241602,-699.39,0.00019726,2]
[374546522,1753348241611,-635.48155688,0.000199,2]
[374546524,1753348241620,-1942.05486517,0.00019967,2]
[374546526,1753348241630,-460.0,0.00019999,2]
[374546528,1753348241639,-460.0,0.0002,2]
[374546530,1753348241648,-482.18,0.0002,2]
[374546532,1753348241658,-460.0,0.0002,2]
[374546534,1753348241667,-460.0,0.0002,2]
[374546536,1753348241678,-460.0,0.0002,2]
[374546546,1753348241796,-460.0,0.0002,2]
[374546547,1753348241806,-460.0,0.0002,2]
[374546549,1753348241815,-460.0,0.0002,2]
[374546552,1753348241825,-460.0,0.0002,2]
[374546554,1753348241836,-460.0,0.0002,2]
[374546555,1753348241845,-255.61,0.0002,2]
[374546557,1753348241855,-460.0,0.0002,2]
[374546559,1753348241865,-460.0,0.0002,2]
[374546561,1753348241874,-460.0,0.0002,2]
[374546563,1753348241883,-460.0,0.0002,2]
[374546566,1753348241894,-2139.19,0.0002,2]
[374546567,1753348241903,-456.43,0.0002,2]
[374546570,1753348241913,-1121.94,0.0002,2]
[374546572,1753348241922,-460.0,0.0002,2]
[374546574,1753348241932,-460.0,0.0002,2]
[374546576,1753348241942,-1053.76,0.0002,2]
[374546577,1753348241951,-460.0,0.0002,2]
[374546580,1753348241961,-460.0,0.0002,2]
[374546582,1753348241971,-460.0,0.0002,2]
[374546584,1753348241980,-460.0,0.0002,2]
[374546585,1753348241989,-460.0,0.0002,2]
[374546587,1753348241999,-1953.6,0.0002,2]
[374546589,1753348242009,-1021.96,0.0002,2]
[374546591,1753348242018,-460.0,0.0002,2]
[374546593,1753348242027,-397.14,0.0002,2]
[374546595,1753348242037,-460.0,0.0002,2]
[374546597,1753348242047,-460.0,0.0002,2]
[374546599,1753348242056,-460.0,0.0002,2]
[374546601,1753348242066,-460.0,0.0002,2]
[374546603,1753348242075,-460.0,0.0002,2]
[374546606,1753348242086,-616.04,0.0002,2]
[374546608,1753348242095,-460.0,0.0002,2]
[374546609,1753348242105,-795.17,0.0002,2]
[374546611,1753348242115,-634.04,0.0002,2]
[374546613,1753348242123,-708.94,0.0002,2]
[374546615,1753348242133,-763.57,0.0002,2]
[374546617,1753348242142,-460.0,0.0002,2]
[374546619,1753348242151,-537.84,0.0002,2]
[374546621,1753348242161,-460.0,0.0002,2]
[374546623,1753348242170,-460.0,0.0002,2]
[374546625,1753348242179,-460.0,0.0002,2]
[374546627,1753348242189,-460.0,0.0002,2]
[374546629,1753348242198,-460.0,0.0002,2]
[374546631,1753348242209,-678.96,0.0002,2]
[374546633,1753348242220,-1501.98,0.0002,2]
[374546635,1753348242229,-460.0,0.0002,2]
[374546637,1753348242238,-899.64,0.0002,2]
[374546639,1753348242248,-460.0,0.0002,2]
[374546641,1753348242258,-956.73,0.0002,2]
[374546643,1753348242267,-460.0,0.0002,2]
[374546645,1753348242277,-460.0,0.0002,2]
[374546647,1753348242286,-460.0,0.0002,2]
[374546649,1753348242295,-699.39,0.0002,2]
[374546651,1753348242305,-188.14487007,0.00020273,2]
[374546653,1753348242314,-460.0,0.00020273,2]
[374546655,1753348242323,-341.25414537,0.00020273,2]
[374546657,1753348242333,-460.0,0.00020273,2]
[374546659,1753348242342,-216.35,0.00020273,2]
[374546661,1753348242352,-460.0,0.00020273,2]
[374546663,1753348242361,-460.0,0.00020273,2]
[374546665,1753348242371,-460.0,0.00020273,2]
[374546666,1753348242380,-351.9958886,0.00020273,2]
[374546667,1753348242390,-460.0,0.00020273,2]
[374546668,1753348242399,-460.0,0.00020273,2]
[374546669,1753348242409,-460.0,0.00020273,2]
[374546670,1753348242419,-460.0,0.00020273,2]
[374546671,1753348242428,-417.62547247,0.00020273,2]
[374546672,1753348242438,-2139.19,0.00020273,2]
[374546674,1753348242448,-1121.94,0.00020273,2]
[374546676,1753348242458,-460.0,0.00020273,2]
[374546678,1753348242468,-460.0,0.00020273,2]
[374546679,1753348242477,-1053.76,0.00020273,2]
[374546680,1753348242485,-460.0,0.00020273,2]
[374546681,1753348242495,-460.0,0.00020273,2]
[374546682,1753348242507,-460.0,0.00020273,2]
[374546683,1753348242517,-354.41743296,0.00020273,2]
[374546684,1753348242526,-1953.6,0.00020273,2]
[374546685,1753348242536,-1021.96,0.00020273,2]
[374546686,1753348242546,-460.0,0.00020273,2]
[374546687,1753348242555,-460.0,0.00020273,2]
[374546688,1753348242565,-460.0,0.00020273,2]
[374546689,1753348242575,-460.0,0.00020273,2]
[374546690,1753348242585,-460.0,0.00020273,2]
[374546691,1753348242595,-460.0,0.00020273,2]
[374546692,1753348242604,-616.04,0.00020273,2]
[374546693,1753348242614,-460.0,0.00020273,2]
[374546694,1753348242623,-634.04,0.00020273,2]
[374546695,1753348242633,-795.17,0.00020273,2]
[374546696,1753348242643,-708.94,0.00020273,2]
[374546697,1753348242653,-763.57,0.00020273,2]
[374546698,1753348242663,-460.0,0.00020273,2]
[374546699,1753348242672,-537.84,0.00020273,2]
[374546700,1753348242682,-460.0,0.00020273,2]
[374546701,1753348242691,-460.0,0.00020273,2]
[374546702,1753348242701,-460.0,0.00020273,2]
[374546703,1753348242711,-460.0,0.00020273,2]
[374546704,1753348242724,-678.96,0.00020273,2]
[374546705,1753348242735,-1501.98,0.00020273,2]
[374546706,1753348242744,-460.0,0.00020273,2]
[374546707,1753348242754,-899.64,0.00020273,2]
[374546708,1753348242763,-460.0,0.00020273,2]
[374546709,1753348242773,-956.73,0.00020273,2]
[374546710,1753348242782,-460.0,0.00020273,2]
[374546711,1753348242792,-460.0,0.00020273,2]
[374546712,1753348242802,-460.0,0.00020273,2]
[374546713,1753348242813,-699.39,0.00020273,2]
[374546714,1753348242824,-1917.23775356,0.00020447,2]
[374546715,1753348242834,-160.0,0.00020458,2]
[374546716,1753348242844,-460.0,0.00020547,2]
[374546717,1753348242854,-460.0,0.00020547,2]
[374546718,1753348242863,-460.0,0.00020547,2]
[374546719,1753348242873,-423.88460427,0.00020547,2]
[374546720,1753348242882,-460.0,0.00020547,2]
[374546721,1753348242892,-460.0,0.00020547,2]
[374546722,1753348242900,-460.0,0.00020547,2]
[374546723,1753348242910,-460.0,0.00020547,2]
[374546724,1753348242919,-460.0,0.00020547,2]
[374546725,1753348242929,-2139.19,0.00020547,2]
[374546726,1753348242938,-1121.94,0.00020547,2]
[374546727,1753348242947,-460.0,0.00020547,2]
[374546728,1753348242956,-460.0,0.00020547,2]
[374546729,1753348242966,-1053.76,0.00020547,2]
[374546730,1753348242977,-460.0,0.00020547,2]
[374546731,1753348242986,-460.0,0.00020547,2]
[374546732,1753348242995,-460.0,0.00020547,2]
[374546733,1753348243003,-1953.6,0.00020547,2]
[374546734,1753348243012,-1021.96,0.00020547,2]
[374546735,1753348243021,-460.0,0.00020547,2]
[374546736,1753348243030,-460.0,0.00020547,2]
[374546737,1753348243039,-460.0,0.00020547,2]
[374546738,1753348243049,-460.0,0.00020547,2]
[374546739,1753348243058,-460.0,0.00020547,2]
[374546740,1753348243068,-346.76,0.00020547,2]
[374546741,1753348243077,-616.04,0.00020547,2]
[374546742,1753348243087,-460.0,0.00020547,2]
[374546743,1753348243096,-634.04,0.00020547,2]
[374546744,1753348243105,-795.17,0.00020547,2]
[374546745,1753348243116,-708.94,0.00020547,2]
[374546746,1753348243125,-763.57,0.00020547,2]
[374546747,1753348243134,-460.0,0.00020547,2]
[374546748,1753348243144,-537.84,0.00020547,2]
[374546749,1753348243153,-460.0,0.00020547,2]
[374546750,1753348243162,-460.0,0.00020547,2]
[374546752,1753348243171,-460.0,0.00020547,2]
[374546753,1753348243181,-460.0,0.00020547,2]
[374546754,1753348243190,-678.96,0.00020547,2]
[374546755,1753348243199,-1501.98,0.00020547,2]
[374546756,1753348243210,-460.0,0.00020547,2]
[374546757,1753348243219,-899.64,0.00020547,2]
[374546758,1753348243229,-460.0,0.00020547,2]
[374546759,1753348243239,-956.73,0.00020547,2]
[374546760,1753348243248,-460.0,0.00020547,2]
[374546761,1753348243258,-460.0,0.00020547,2]
[374546762,1753348243267,-460.0,0.00020547,2]
[374546763,1753348243276,-699.39,0.00020547,2]
[374546764,1753348243286,-526.24749348,0.00020563,2]
[374546765,1753348243295,-160.0,0.00020563,2]
[374546766,1753348243305,-840.23756827,0.00020563,2]
[374546768,1753348243314,-160.0,0.00020563,2]
[374546769,1753348243324,-476.79463412,0.00020563,2]
[374546770,1753348243333,-160.0,0.00020563,2]
[374546771,1753348243343,-215.88777038,0.00020563,2]
[374546772,1753348243352,-12624.810388,0.00020563,2]
[374546773,1753348243362,-151.0,0.000208,3]
[374546774,1753348243371,-460.0,0.00020821,2]
[374546775,1753348243381,-460.0,0.00020821,2]
[374546776,1753348243390,-460.0,0.00020821,2]
[374546777,1753348243399,-460.0,0.00020821,2]
[374546778,1753348243409,-460.0,0.00020821,2]
[374546779,1753348243419,-460.0,0.00020821,2]
[374546780,1753348243429,-460.0,0.00020821,2]
[374546781,1753348243439,-460.0,0.00020821,2]
[374546782,1753348243449,-2139.19,0.00020821,2]
[374546783,1753348243459,-1121.94,0.00020821,2]
[374546784,1753348243469,-183.09943516,0.00020821,2]
[374546785,1753348243479,-460.0,0.00020821,2]
[374546786,1753348243488,-1053.76,0.00020821,2]
[374546787,1753348243497,-460.0,0.00020821,2]
[374546788,1753348243507,-460.0,0.00020821,2]
[374546789,1753348243517,-460.0,0.00020821,2]
[374546790,1753348243526,-1953.6,0.00020821,2]
[374546791,1753348243535,-1021.96,0.00020821,2]
[374546792,1753348243544,-460.0,0.00020821,2]
[374546793,1753348243553,-460.0,0.00020821,2]
[374546794,1753348243563,-206.72,0.00020821,2]
[374546795,1753348243573,-460.0,0.00020821,2]
[374546796,1753348243582,-579.28923589,0.00020821,2]
[374546797,1753348243600,-616.04,0.00020821,2]
[374546798,1753348243615,-460.0,0.00020821,2]
[374546799,1753348243625,-634.04,0.00020821,2]
[374546800,1753348243635,-795.17,0.00020821,2]
[374546801,1753348243645,-708.94,0.00020821,2]
[374546802,1753348243657,-763.57,0.00020821,2]
[374546803,1753348243666,-460.0,0.00020821,2]
[374546804,1753348243677,-537.84,0.00020821,2]
[374546805,1753348243687,-531.86320187,0.00020821,2]
[374546806,1753348243697,-460.0,0.00020821,2]
[374546807,1753348243707,-460.0,0.00020821,2]
[374546808,1753348243719,-460.0,0.00020821,2]
[374546809,1753348243730,-678.96,0.00020821,2]
[374546810,1753348243739,-1501.98,0.00020821,2]
[374546811,1753348243749,-460.0,0.00020821,2]
[374546812,1753348243760,-899.64,0.00020821,2]
[374546813,1753348243770,-460.0,0.00020821,2]
[374546814,1753348243779,-956.73,0.00020821,2]
[374546815,1753348243789,-460.0,0.00020821,2]
[374546816,1753348243799,-494.89839363,0.00020821,2]
[374546817,1753348243809,-193.62361746,0.00020821,2]
[374546818,1753348243818,-699.39,0.00020821,2]
[374546819,1753348243828,-601.043,0.0002087,2]
[374546820,1753348243837,-178.70934786,0.0002087,2]
[374546821,1753348243847,-420.0,0.00020898,2]
[374546822,1753348243856,-273.14939972,0.00020928,2]
[374546823,1753348243866,-260.0,0.00021006,2]
[374546824,1753348243876,-600.0,0.00021053,2]
[374546825,1753348243886,-268.24,0.00021053,2]
[374546826,1753348243897,-500.0,0.00021064,2]
[374546827,1753348243906,-460.0,0.00021095,2]
[374546828,1753348243916,-460.0,0.00021095,2]
[374546829,1753348243925,-162.73233561,0.00021095,2]
[374546830,1753348243935,-460.0,0.00021095,2]
[374546831,1753348243945,-460.0,0.00021095,2]
[374546832,1753348243955,-460.0,0.00021095,2]
[374546833,1753348243964,-460.0,0.00021095,2]
[374546834,1753348243974,-2139.19,0.00021095,2]
[374546835,1753348243983,-1121.94,0.00021095,2]
[374546836,1753348243993,-159.41890485,0.00021095,2]
[374546837,1753348244012,-300.58109515,0.00021095,2]
[374546838,1753348244021,-1053.76,0.00021095,2]
[374546839,1753348244030,-460.0,0.00021095,2]
[374546840,1753348244040,-460.0,0.00021095,2]
[374546841,1753348244049,-482.73,0.00021095,2]
[374546842,1753348244059,-1953.6,0.00021095,2]
[374546843,1753348244068,-1021.96,0.00021095,2]
[374546844,1753348244078,-460.0,0.00021095,2]
[374546845,1753348244087,-460.0,0.00021095,2]
[374546846,1753348244097,-616.04,0.00021095,2]
[374546847,1753348244106,-460.0,0.00021095,2]
[374546848,1753348244116,-634.04,0.00021095,2]
[374546849,1753348244125,-795.17,0.00021095,2]
[374546850,1753348244135,-708.94,0.00021095,2]
[374546851,1753348244144,-763.57,0.00021095,2]
[374546852,1753348244154,-461.57322008,0.00021095,2]
[374546853,1753348244164,-537.84,0.00021095,2]
[374546854,1753348244173,-460.0,0.00021095,2]
[374546856,1753348244183,-460.0,0.00021095,2]
[374546858,1753348244192,-460.0,0.00021095,2]
[374546860,1753348244201,-678.96,0.00021095,2]
[374546862,1753348244210,-1501.98,0.00021095,2]
[374546864,1753348244220,-460.0,0.00021095,2]
[374546866,1753348244230,-899.64,0.00021095,2]
[374546868,1753348244239,-306.40724189,0.00021095,2]
[374546870,1753348244248,-956.73,0.00021095,2]
[374546872,1753348244258,-460.0,0.00021095,2]
[374546873,1753348244267,-699.39,0.00021095,2]
[374546875,1753348244276,-576.2,0.00021121,4]
[374546877,1753348244286,-419.69759616,0.00021125,2]
[374546880,1753348244298,-215.78396071,0.00021125,2]
[374546882,1753348244307,-245.98826531,0.00021281,2]
[374546884,1753348244318,-254.01173469,0.00021281,2]
[374546886,1753348244328,-500.48698167,0.00021281,2]
[374546888,1753348244337,-460.0,0.00021369,2]
[374546890,1753348244347,-460.0,0.00021369,2]
[374546892,1753348244356,-460.0,0.00021369,2]
[374546894,1753348244367,-460.0,0.00021369,2]
[374546896,1753348244377,-460.0,0.00021369,2]
[374546898,1753348244386,-460.0,0.00021369,2]
[374546900,1753348244395,-1832.32148831,0.00021369,2]
[374546902,1753348244406,-306.86851169,0.00021369,2]
[374546904,1753348244415,-1121.94,0.00021369,2]
[374546906,1753348244424,-460.0,0.00021369,2]
[374546918,1753348244433,-1053.76,0.00021369,2]
[374546920,1753348244540,-532.16850125,0.00021369,2]
[374546922,1753348244550,-460.0,0.00021369,2]
[374546924,1753348244560,-1953.6,0.00021369,2]
[374546926,1753348244570,-1021.96,0.00021369,2]
[374546928,1753348244580,-460.0,0.00021369,2]
[374546930,1753348244589,-460.0,0.00021369,2]
[374546932,1753348244598,-616.04,0.00021369,2]
[374546934,1753348244608,-164.17014163,0.00021369,2]
[374546936,1753348244620,-634.04,0.00021369,2]
[374546938,1753348244630,-708.94,0.00021369,2]
[374546940,1753348244639,-763.57,0.00021369,2]
[374546942,1753348244649,-795.17,0.00021369,2]
[374546944,1753348244658,-537.84,0.00021369,2]
[374546946,1753348244667,-460.0,0.00021369,2]
[374546948,1753348244677,-460.0,0.00021369,2]
[374546949,1753348244686,-678.96,0.00021369,2]
[374546952,1753348244695,-1501.98,0.00021369,2]
[374546953,1753348244705,-544.06774194,0.00021369,2]
[374546955,1753348244716,-899.64,0.00021369,2]
[374546957,1753348244726,-956.73,0.00021369,2]
[374546959,1753348244735,-460.0,0.00021369,2]
[374546961,1753348244745,-699.39,0.00021369,2]
[374546963,1753348244754,-158.977659,0.00021404,2]
[374546965,1753348244764,-576.2,0.00021464,4]
[374546967,1753348244773,-500.0,0.000215,2]
[374546969,1753348244783,-500.0,0.000215,2]
[374546971,1753348244794,-158.30900558,0.000215,2]
[374546973,1753348244804,-360.0,0.00021554,2]
[374546975,1753348244813,-460.0,0.00021643,2]
[374546977,1753348244822,-460.0,0.00021643,2]
[374546979,1753348244832,-385.71349605,0.00021643,2]
[374546981,1753348244841,-460.0,0.00021643,2]
[374546983,1753348244851,-2139.19,0.00021643,2]
[374546985,1753348244862,-1121.94,0.00021643,2]
[374546987,1753348244871,-460.0,0.00021643,2]
[374546989,1753348244882,-1053.76,0.00021643,2]
[374546991,1753348244891,-460.0,0.00021643,2]
[374546993,1753348244901,-1953.6,0.00021643,2]
[374546995,1753348244910,-1021.96,0.00021643,2]
[374546997,1753348244920,-616.04,0.00021643,2]
[374546999,1753348244929,-634.04,0.00021643,2]
[374547001,1753348244939,-708.94,0.00021643,2]
[374547003,1753348244948,-763.57,0.00021643,2]
[374547005,1753348244958,-795.17,0.00021643,2]
[374547007,1753348244968,-537.84,0.00021643,2]
[374547009,1753348244977,-460.0,0.00021643,2]
[374547011,1753348244987,-460.0,0.00021643,2]
[374547013,1753348244996,-678.96,0.00021643,2]
[374547015,1753348245006,-1501.98,0.00021643,2]
[374547017,1753348245015,-899.64,0.00021643,2]
[374547019,1753348245025,-956.73,0.00021643,2]
[374547021,1753348245034,-460.0,0.00021643,2]
[374547023,1753348245044,-699.39,0.00021643,2]
[374547025,1753348245054,-652.98617907,0.000217,2]
[374547028,1753348245070,-268.27532093,0.000217,2]
[374547030,1753348245079,-406.11195206,0.00021808,5]
[374547032,1753348245091,-170.08804794,0.00021808,5]
[374547034,1753348245100,-298.1774245,0.00021917,2]
[374547036,1753348245111,-161.8225755,0.00021917,2]
[374547038,1753348245120,-460.0,0.00021917,2]
[374547040,1753348245131,-500.0,0.00021917,2]
[374547042,1753348245142,-500.0,0.00021917,2]
[374547044,1753348245152,-500.0,0.00021917,2]
[374547046,1753348245162,-210.24023029,0.00021917,2]
[374547048,1753348245175,-289.75976971,0.00021917,2]
[374547050,1753348245184,-500.0,0.00021917,2]
[374547052,1753348245194,-197.03102004,0.00021917,2]
[374547055,1753348245203,-460.0,0.00021917,2]
[374547056,1753348245212,-2139.19,0.00021917,2]
[374547058,1753348245223,-961.44309408,0.00021917,2]
[374547068,1753348245325,-200.30474525,0.00019078,2]
[374547069,1753348245334,-1947.83178441,0.000209,4]
[374547070,1753348245344,-1947.83178419,0.00021072,4]
[374547071,1753348245354,-1401.62901695,0.00021245,4]
[374547072,1753348245365,-546.20276724,0.00021245,4]
[374547074,1753348245375,-706.11228821,0.00021417,5]
[374547076,1753348245390,-1241.71949598,0.00021417,5]
[374547078,1753348245399,-1947.83178419,0.0002159,5]
[374547080,1753348245408,-1947.83178419,0.00021762,5]
[374547082,1753348245417,-160.49690592,0.00021917,2]
[374547083,1753348245426,-254.78692336,0.00021917,2]
[374547089,1753348245528,-460.0,0.00019178,2]
[374547090,1753348245538,-460.0,0.00019178,2]
[374547091,1753348245547,-460.0,0.00019452,2]
[374547092,1753348245557,-205.21307664,0.00021917,2]
[374547093,1753348245566,-1053.76,0.00021917,2]
[374547094,1753348245576,-460.0,0.00021917,2]
[374547095,1753348245586,-1953.6,0.00021917,2]
[374547096,1753348245598,-1021.96,0.00021917,2]
[374547097,1753348245607,-616.04,0.00021917,2]
[374547098,1753348245618,-634.04,0.00021917,2]
[374547099,1753348245627,-763.57,0.00021917,2]
[374547100,1753348245636,-708.94,0.00021917,2]
[374547101,1753348245645,-795.17,0.00021917,2]
[374547102,1753348245655,-537.84,0.00021917,2]
[374547103,1753348245664,-280.47,0.00021917,2]
[374547104,1753348245674,-460.0,0.00021917,2]
[374547105,1753348245683,-678.96,0.00021917,2]
[374547106,1753348245694,-1501.98,0.00021917,2]
[374547107,1753348245703,-899.64,0.00021917,2]
[374547108,1753348245715,-956.73,0.00021917,2]
[374547109,1753348245725,-460.0,0.00021917,2]
[374547111,1753348245735,-699.39,0.00021917,2]
[374547112,1753348245744,-150.12541734,0.00021918,2]
[374547113,1753348245755,-1947.83178419,0.00021934,6]
[374547114,1753348245764,-2784.6397749,0.00022,2]
[374547115,1753348245774,-8291.67,0.00022,7]
[374547116,1753348245783,-157.0,0.00022,2]
[374547118,1753348245792,-460.0,0.00022102,2]
[374547119,1753348245802,-1947.83178419,0.00022107,6]
[374547120,1753348245812,-576.2,0.00022152,5]
[374547121,1753348245821,-500.0,0.0002216,2]
[374547122,1753348245831,-460.0,0.00022191,2]
[374547123,1753348245840,-460.0,0.00022191,2]
[374547124,1753348245849,-1121.94,0.00022191,2]
[374547125,1753348245859,-2139.19,0.00022191,2]
[374547127,1753348245870,-460.0,0.00022191,2]
[374547128,1753348245879,-1053.76,0.00022191,2]
[374547129,1753348245889,-1.09737345,0.00022191,2]
[374547130,1753348246423,-460.0,0.00019178,2]
[374547131,1753348246433,-460.0,0.00019178,2]
[374547132,1753348246443,-56.23338754,0.00019452,2]
[374547133,1753348246477,-403.76661246,0.00019452,2]
[374547134,1753348246487,-460.0,0.00019452,2]
[374547135,1753348246497,-460.0,0.00019452,2]
[374547136,1753348246506,-460.0,0.00019726,2]
[374547137,1753348246516,-460.0,0.00019726,2]
[374547138,1753348246526,-460.0,0.00019726,2]
[374547139,1753348246535,-267.01323068,0.0002,2]
[374547140,1753348246551,-192.98676932,0.0002,2]
[374547141,1753348246561,-460.0,0.00020273,2]
[374547142,1753348246571,-460.0,0.00020547,2]
[374547143,1753348246580,-460.0,0.00020821,2]
[374547145,1753348246590,-458.90262655,0.00022191,2]
[374547146,1753348246600,-1953.6,0.00022191,2]
[374547147,1753348246609,-1021.96,0.00022191,2]
[374547148,1753348246619,-616.04,0.00022191,2]
[374547149,1753348246632,-634.04,0.00022191,2]
[374547150,1753348246642,-763.57,0.00022191,2]
[374547151,1753348246651,-708.94,0.00022191,2]
[374547152,1753348246660,-795.17,0.00022191,2]
[374547153,1753348246670,-537.84,0.00022191,2]
[374547154,1753348246679,-460.0,0.00022191,2]
[374547155,1753348246689,-678.96,0.00022191,2]
[374547156,1753348246698,-1501.98,0.00022191,2]
[374547157,1753348246707,-899.64,0.00022191,2]
[374547158,1753348246722,-956.73,0.00022191,2]
[374547159,1753348246733,-460.0,0.00022191,2]
[374547160,1753348246743,-699.39,0.00022191,2]
[374547161,1753348246752,-151.0,0.000222,10]
[374547162,1753348246762,-1947.83178419,0.00022279,6]
[374547163,1753348246771,-635.48155687,0.0002235,2]
[374547164,1753348246782,-1947.83178419,0.00022452,7]
[374547165,1753348246792,-250.0,0.00022455,2]
[374547166,1753348246802,-3692.49,0.00022455,10]
[374547167,1753348246811,-151.0,0.00022465,2]
[374547168,1753348246820,-460.0,0.00022465,2]
[374547169,1753348246831,-460.0,0.00022465,2]
[374547170,1753348246840,-2139.19,0.00022465,2]
[374547171,1753348246850,-460.0,0.00022465,2]
[374547172,1753348246860,-1053.76,0.00022465,2]
[374547173,1753348246871,-460.0,0.00022465,2]
[374547174,1753348246881,-1953.6,0.00022465,2]
[374547175,1753348246890,-1021.96,0.00022465,2]
[374547176,1753348246899,-616.04,0.00022465,2]
[374547177,1753348246909,-763.57,0.00022465,2]
[374547178,1753348246919,-634.04,0.00022465,2]
[374547179,1753348246928,-708.94,0.00022465,2]
[374547180,1753348246938,-795.17,0.00022465,2]
[374547181,1753348246949,-537.84,0.00022465,2]
[374547182,1753348246958,-155.0,0.00022465,2]
[374547183,1753348246968,-438.51107963,0.00022465,2]